bitfinex-derivatives/quotes_BNBF0:USTF0_20250509
["timestamp","ask_amount","ask_price","bid_price","bid_amount"]
[1746832960190,0.24832849,665.43,662.58,0.30185034]
[1746832961591,0.24832849,665.42,662.58,0.30185034]
[1746832961798,0.24832849,665.41,662.58,0.30185034]
[1746832961993,0.85632849,665.41,662.58,0.30185034]
[1746832962198,0.24832849,665.4,662.58,0.30185034]
[1746832962498,0.24832849,665.39,662.58,0.30185034]
[1746832962701,0.608,665.41,662.58,0.30185034]
[1746832963102,0.3006253,665.28,662.58,0.30185034]
[1746832963495,0.24845995,665.27,662.58,0.30185034]
[1746832963695,0.51084403,665.27,662.58,0.30185034]
[1746832963894,0.68845995,665.26,662.58,0.30185034]
[1746832964102,0.24845995,665.25,662.58,0.30185034]
[1746832964500,0.30069761,665.12,662.58,0.30185034]
[1746832965001,0.24845995,665.11,662.58,0.30185034]
[1746832965196,0.24845995,665.1,662.58,0.30185034]
[1746832965397,0.30076092,664.98,662.58,0.30185034]
[1746832965799,0.24845995,664.97,662.58,0.30185034]
[1746832965995,0.3008152,664.86,662.58,0.30185034]
[1746832966200,0.24845995,664.85,662.58,0.30185034]
[1746832966497,0.30082878,664.83,662.58,0.30185034]
[1746832966699,0.24845995,664.82,662.58,0.30185034]
[1746832966995,0.30084235,664.8,662.58,0.30185034]
[1746832967301,0.24845995,664.79,662.58,0.30185034]
[1746832967601,0.30089667,664.68,662.58,0.30185034]
[1746832967997,0.24845995,664.67,662.58,0.30185034]
[1746832968295,0.30091025,664.65,662.58,0.30185034]
[1746832968601,0.24845995,664.64,662.58,0.30185034]
[1746832968900,0.30092383,664.62,662.58,0.30185034]
[1746832969504,0.24845995,664.61,662.58,0.30185034]
[1746832969801,0.30093742,664.59,662.58,0.30185034]
[1746832970096,0.24845995,664.58,662.58,0.30185034]
[1746832970302,0.300951,664.56,662.58,0.30185034]
[1746832970503,0.24845995,664.55,662.58,0.30185034]
[1746832970898,0.30096459,664.53,662.58,0.30185034]
[1746832971202,0.24845995,664.52,662.58,0.30185034]
[1746832971596,0.30097817,664.5,662.58,0.30185034]
[1746832971801,0.30097817,664.5,658.38,0.57413498]
[1746832972002,0.24845995,664.49,658.68,0.30363757]
[1746832972203,0.30105973,664.32,658.68,0.30363757]
[1746832972504,0.30105973,664.32,658.69,1.11469366]
[1746832972705,0.24845995,664.31,658.97,0.30350395]
[1746832973004,0.30112772,664.17,658.97,0.30350395]
[1746832973401,0.24888991,664.16,658.98,0.85460262]
[1746832973599,0.24888991,664.15,658.99,0.85460262]
[1746832973804,0.24888991,664.15,659.24,0.30337964]
[1746832974104,0.30118667,664.04,659.25,0.27767313]
[1746832974303,0.30118667,664.04,659.48,0.30326924]
[1746832974605,0.24888991,664.03,659.49,0.27767313]
[1746832974801,0.24888991,664.03,659.71,0.30316351]
[1746832975007,0.30124111,663.92,659.71,0.30316351]
[1746832975207,0.24888991,663.91,659.72,0.27767313]
[1746832975707,0.24888991,663.9,659.73,0.27767313]
[1746832976102,0.24888991,663.89,659.93,0.30306244]
[1746832976303,0.3012638,663.87,659.93,0.30306244]
[1746832976503,0.3012638,663.87,659.94,0.27767313]
[1746832976806,0.24888991,663.86,660.13,0.30297062]
[1746832977008,0.30127741,663.84,660.14,0.27767313]
[1746832977207,0.30127741,663.84,660.32,0.30288345]
[1746832977408,0.24888991,663.83,660.32,0.30288345]
[1746832977709,0.30129103,663.81,660.32,0.30288345]
[1746832978212,0.30129103,663.81,660.33,0.27767313]
[1746832978408,0.30129103,663.81,660.5,0.3028009]
[1746832978609,0.24888991,663.8,660.5,0.3028009]
[1746832979109,0.30135912,663.66,660.51,0.27785727]
[1746832979308,0.30135912,663.66,660.66,0.30272757]
[1746832979509,0.24888991,663.65,660.66,0.30272757]
[1746832979710,0.30141362,663.54,660.66,0.30272757]
[1746832980210,0.24888991,663.53,660.66,0.30272757]
[1746832980410,0.30147723,663.4,660.66,0.30272757]
[1746832980811,0.24888991,663.39,660.66,0.30272757]
[1746832981004,0.30149087,663.37,660.66,0.30272757]
[1746832981209,0.24888991,663.36,660.67,0.27780478]
[1746832981408,0.3015045,663.34,660.8,0.30266343]
[1746832982207,0.24888991,663.33,660.8,0.30266343]
[1746832982411,0.30151814,663.31,660.8,0.30266343]
[1746832983006,0.24888991,663.3,660.8,0.30266343]
[1746832983206,0.30153178,663.28,660.8,0.30266343]
[1746832983506,0.24888991,663.27,660.8,0.30266343]
[1746832983812,0.24888991,663.26,660.8,0.30266343]
[1746832984112,0.24888991,663.25,660.8,0.30266343]
[1746832984514,0.24888991,663.24,660.81,0.27766901]
[1746832984715,0.51178141,663.24,660.93,0.3026039]
[1746832985014,0.2628915,663.24,660.93,0.3026039]
[1746832985514,0.24888991,663.23,660.94,0.27766901]
[1746832985714,0.24888991,663.23,661.05,0.30254897]
[1746832987114,0.24888991,663.22,661.05,0.30254897]
[1746832987314,0.24888991,663.23,661.06,0.27759412]
[1746832987610,0.24888991,663.23,661.05,0.30254897]
[1746832989514,0.24888991,663.23,661.06,0.27758679]
[1746832989715,0.24888991,663.23,661.16,0.30249863]
[1746832990014,0.24888991,663.22,661.16,0.30249863]
[1746832990409,0.481,663.86,661.16,0.30249863]
[1746832990713,0.26283889,663.21,661.16,0.30249863]
[1746832990915,0.30127741,663.84,661.16,0.30249863]
[1746832991609,0.24889801,663.83,661.16,0.30249863]
[1746832991811,0.30134096,663.7,661.16,0.30249863]
[1746832992414,0.24889801,663.69,661.16,0.30249863]
[1746832992610,0.3014,663.57,661.16,0.30249863]
[1746832993109,0.24889801,663.56,661.16,0.30249863]
[1746832993314,0.30145451,663.45,661.16,0.30249863]
[1746832993815,0.24889801,663.44,661.16,0.30249863]
[1746832994012,0.30146814,663.42,661.16,0.30249863]
[1746832994210,0.24889801,663.41,661.16,0.30249863]
[1746832994414,0.30148178,663.39,661.16,0.30249863]
[1746832994617,0.24889801,663.38,661.16,0.30249863]
[1746832994818,0.30149087,663.37,661.16,0.30249863]
[1746832995112,0.55038888,663.37,661.16,0.30249863]
[1746832995316,0.24889801,663.36,661.16,0.30249863]
[1746832995817,0.55039797,663.35,661.16,0.30249863]
[1746832996115,0.55040251,663.34,661.16,0.30249863]
[1746832996316,0.55040706,663.33,661.16,0.30249863]
[1746832996611,0.5504116,663.32,661.16,0.30249863]
[1746832996816,0.30151814,663.31,661.16,0.30249863]
[1746832997011,0.55041615,663.31,661.16,0.30249863]
[1746832997617,0.24889801,663.3,661.16,0.30249863]
[1746832997817,0.30153178,663.28,661.16,0.30249863]
[1746832998417,0.24889801,663.27,661.16,0.30249863]
[1746832998617,0.55043433,663.27,661.16,0.30249863]
[1746832998818,0.30154087,663.26,661.16,0.30249863]
[1746832999119,0.24889801,663.25,661.16,0.30249863]
[1746832999618,0.81331465,663.24,661.16,0.30249863]
[1746833000214,0.55045252,663.23,661.16,0.30249863]
[1746833000718,0.24889801,663.22,661.16,0.30249863]
[1746833001318,0.24889801,663.21,661.16,0.30249863]
[1746833001819,0.24889801,663.2,661.16,0.30249863]
[1746833002216,0.24889801,663.19,661.16,0.30249863]
[1746833002616,0.51171208,663.18,661.16,0.30249863]
[1746833002818,0.24889801,663.17,661.16,0.30249863]
[1746833003520,0.24889801,663.16,661.16,0.30249863]
[1746833003819,0.88189801,663.15,661.16,0.30249863]
[1746833004221,0.24889801,663.14,661.16,0.30249863]
[1746833005318,0.24889801,663.14,661.17,0.27742083]
[1746833005618,0.26269107,663.13,661.19,0.30248491]
[1746833005917,0.24868719,663.12,661.2,0.27746886]
[1746833006121,0.24868719,663.12,661.22,0.30247118]
[1746833006621,0.26269107,663.13,661.22,0.30247118]
[1746833006924,0.24892403,663.12,661.22,0.30247118]
[1746833007223,0.30161363,663.1,661.22,0.30247118]
[1746833008025,0.24892403,663.09,661.22,0.30247118]
[1746833008320,0.55054676,663.08,661.22,0.30247118]
[1746833008726,0.24892403,663.07,661.22,0.30247118]
[1746833009321,0.24892403,663.06,661.22,0.30247118]
[1746833009626,0.24892403,663.05,661.22,0.30247118]
[1746833010026,0.24892403,663.07,661.22,0.30247118]
[1746833010526,0.24892403,663.12,661.22,0.30247118]
[1746833011724,0.5116875,663.11,661.23,0.27763136]
[1746833011923,0.5116875,663.11,661.25,0.30245746]
[1746833012121,0.24892403,663.1,661.26,0.27763136]
[1746833012323,0.24892403,663.1,661.28,0.30244374]
[1746833012525,0.24892403,663.1,661.29,0.27763136]
[1746833012827,0.24892403,663.1,661.31,0.30243002]
[1746833013127,0.26276347,663.11,661.31,0.30243002]
[1746833013428,0.24874249,663.1,661.32,0.2775246]
[1746833013726,0.24874249,663.1,661.34,0.3024163]
[1746833014328,0.24874249,663.1,661.35,0.2775246]
[1746833014927,0.633,663.15,661.37,0.30240258]
[1746833015629,0.248673,663.14,661.38,0.2775246]
[1746833015924,0.248673,663.14,661.4,0.30238887]
[1746833017628,0.30159998,663.13,661.4,0.30238887]
[1746833017823,0.56440413,663.13,661.4,0.30238887]
[1746833018027,0.248673,663.12,661.4,0.30238887]
[1746833021031,0.248673,663.11,661.4,0.30238887]
[1746833021525,0.248673,663.1,661.4,0.30238887]
[1746833021831,0.248673,663.09,661.4,0.30238887]
[1746833022029,0.695673,663.09,661.4,0.30238887]
[1746833022228,0.248673,663.08,661.4,0.30238887]
[1746833022531,0.248673,663.07,661.4,0.30238887]
[1746833022926,0.248673,663.08,661.4,0.30238887]
[1746833023831,0.26280217,663.07,661.4,0.30238887]
[1746833025130,0.248673,663.06,661.4,0.30238887]
[1746833026734,0.26301767,663.05,661.4,0.30238887]
[1746833027128,0.248673,663.04,661.4,0.30238887]
[1746833029535,0.248673,663.03,661.4,0.30238887]
[1746833029934,0.248673,663.02,661.4,0.30238887]
[1746833030237,0.248673,663.01,661.4,0.30238887]
[1746833030533,0.248673,663.0,661.4,0.30238887]
[1746833031131,0.248673,663.04,661.4,0.30238887]
[1746833031438,0.248673,663.03,661.4,0.30238887]
[1746833031737,0.248673,663.02,661.4,0.30238887]
[1746833032138,0.248673,663.01,661.4,0.30238887]
[1746833032438,0.248673,663.0,661.4,0.30238887]
[1746833032736,0.55033667,662.99,661.4,0.30238887]
[1746833032939,0.30166822,662.98,661.4,0.30238887]
[1746833033132,0.55034122,662.98,661.4,0.30238887]
[1746833033332,0.30166822,662.98,661.4,0.30238887]
[1746833033636,0.2490608,662.97,661.4,0.30238887]
[1746833034339,0.30167732,662.96,661.4,0.30238887]
[1746833034737,0.2490608,662.95,661.4,0.30238887]
[1746833034939,0.30168642,662.94,661.4,0.30238887]
[1746833035139,0.24918131,662.93,661.4,0.30238887]
[1746833035434,0.30170007,662.91,661.4,0.30238887]
[1746833035735,0.24918131,662.9,661.4,0.30238887]
[1746833037139,0.24918131,662.94,661.4,0.30238887]
[1746833037939,0.502,662.95,661.4,0.30238887]
[1746833037940,0.24918131,662.93,661.4,0.30238887]
[1746833038244,0.24918131,662.92,661.4,0.30238887]
[1746833038635,0.502,662.95,661.4,0.30238887]
[1746833038636,0.72018131,662.91,661.4,0.30238887]
[1746833038839,0.983047,662.91,661.4,0.30238887]
[1746833039037,0.24918131,662.9,661.4,0.30238887]
[1746833039744,0.24918131,662.89,661.4,0.30238887]
[1746833040239,0.24918131,662.9,661.4,0.30238887]
[1746833042747,0.26277934,662.89,661.4,0.30238887]
[1746833043145,0.24918131,662.88,661.4,0.30238887]
[1746833047943,0.26277934,662.89,661.4,0.30238887]
[1746833048448,0.24884732,662.88,661.4,0.30238887]
[1746833050749,0.26276546,662.87,661.4,0.30238887]
[1746833051147,0.24884732,662.86,661.4,0.30238887]
[1746833053650,0.26278431,662.85,661.4,0.30238887]
[1746833054044,0.24884732,662.84,661.4,0.30238887]
[1746833056050,0.471,662.91,661.4,0.30238887]
[1746833056651,0.62568497,662.9,661.41,0.2774666]
[1746833056852,0.377,662.9,661.43,0.30237515]
[1746833057247,0.377,662.9,661.44,0.2774666]
[1746833057549,0.377,662.9,661.46,0.30236144]
[1746833058051,0.24867179,662.89,661.47,0.2774666]
[1746833058648,0.377,662.9,661.46,0.30236144]
[1746833059352,0.24870803,662.89,661.46,0.30236144]
[1746833060153,0.377,662.9,661.46,0.30236144]
[1746833062854,0.2627476,662.89,661.46,0.30236144]
[1746833063350,0.24877737,662.88,661.46,0.30236144]
[1746833064051,0.456,662.87,661.46,0.30236144]
[1746833064351,0.24877737,662.86,661.46,0.30236144]
[1746833065657,0.26275454,662.85,661.46,0.30236144]
[1746833065952,0.24877737,662.84,661.46,0.30236144]
[1746833068861,0.26302165,662.83,661.46,0.30236144]
[1746833069358,0.24877737,662.82,661.46,0.30236144]
[1746833070754,0.24877737,662.81,661.46,0.30236144]
[1746833071059,0.24877737,662.8,661.46,0.30236144]
[1746833071561,0.24877737,662.79,661.46,0.30236144]
[1746833071856,0.24877737,662.78,661.46,0.30236144]
[1746833072061,0.85477737,662.78,661.46,0.30236144]
[1746833072260,0.24877737,662.77,661.46,0.30236144]
[1746833074666,0.26287363,662.76,661.46,0.30236144]
[1746833075060,0.24877737,662.75,661.46,0.30236144]
[1746833077763,0.26305943,662.74,661.46,0.30236144]
[1746833078168,0.24877737,662.73,661.46,0.30236144]
[1746833080869,0.606,662.78,661.46,0.30236144]
[1746833081171,0.24877347,662.77,661.46,0.30236144]
[1746833082765,0.606,662.78,661.46,0.30236144]
[1746833085068,0.456,662.87,661.46,0.30236144]
[1746833085479,0.24873428,662.86,661.46,0.30236144]
[1746833087283,0.456,662.87,661.46,0.30236144]
[1746833088582,0.523,662.86,661.46,0.30236144]
[1746833088989,0.24869517,662.85,661.47,0.27747686]
[1746833089288,0.24869517,662.85,661.49,0.30234773]
[1746833090388,0.24869517,662.85,661.5,0.27746341]
[1746833090589,0.24869517,662.85,661.52,0.30233401]
[1746833091285,0.24869517,662.85,661.53,0.27746341]
[1746833091688,0.523,662.86,661.55,0.3023203]
[1746833092690,0.523,662.86,661.56,0.27740045]
[1746833092887,0.523,662.86,661.58,0.30230659]
[1746833093588,0.523,662.86,661.59,0.27740045]
[1746833093790,0.523,662.86,661.61,0.30229289]
[1746833093991,0.523,662.86,661.62,0.27740045]
[1746833094287,0.523,662.86,661.64,0.30227918]
[1746833094790,0.523,662.86,661.65,0.27740045]
[1746833094990,0.523,662.86,661.67,0.30226547]
[1746833095485,0.523,662.86,661.68,0.27740045]
[1746833095690,0.523,662.86,661.7,0.30225177]
[1746833096189,0.523,662.86,661.71,0.27740045]
[1746833096393,0.523,662.86,661.73,0.30223807]
[1746833096987,0.359,662.85,661.73,0.30223807]
[1746833097990,0.359,662.85,661.74,0.27723776]
[1746833098293,0.359,662.85,661.76,0.30222437]
[1746833098692,0.359,662.85,661.77,0.27723776]
[1746833098894,0.359,662.85,661.79,0.30221067]
[1746833099389,0.359,662.85,661.8,0.27723776]
[1746833099589,0.359,662.85,661.82,0.30219697]
[1746833099789,0.359,662.85,661.83,0.27723776]
[1746833100096,0.359,662.85,661.85,0.30218327]
[1746833100995,0.359,662.85,661.86,0.27722162]
[1746833102697,0.359,662.85,661.88,0.30216957]
[1746833103094,0.359,662.85,661.89,0.27722162]
[1746833103289,0.359,662.85,661.91,0.30215588]
[1746833103796,0.359,662.85,661.92,0.27722162]
[1746833103996,0.359,662.85,661.94,0.30214218]
[1746833105096,0.359,662.85,661.95,0.27724694]
[1746833105293,0.359,662.85,661.97,0.30212849]
[1746833106397,0.359,662.85,661.98,0.27719959]
[1746833106693,0.359,662.85,662.0,0.3021148]
[1746833107201,0.359,662.85,662.01,0.27719959]
[1746833107495,0.359,662.85,662.03,0.30210111]
[1746833107999,0.359,662.85,662.04,0.27719959]
[1746833108194,0.359,662.85,662.06,0.30208742]
[1746833109902,0.359,662.85,662.07,0.2771569]
[1746833110103,0.359,662.85,662.08,0.30207829]
[1746833110500,0.359,662.85,662.09,0.2771569]
[1746833110701,0.359,662.85,662.1,0.30206917]
[1746833112103,0.523,662.86,662.1,0.30206917]
[1746833112600,0.26252461,663.65,662.1,0.30206917]
[1746833113405,0.24839476,663.64,662.11,0.27717418]
[1746833113601,0.24839476,663.64,662.13,0.30205548]
[1746833113805,0.24839476,664.99,662.13,0.30205548]
[1746833114006,0.30076544,664.97,662.13,0.30205548]
[1746833114306,0.24839476,664.96,662.14,0.27717418]
[1746833114505,0.30077901,664.94,662.28,0.30198707]
[1746833114907,0.402,664.93,662.28,0.30198707]
[1746833115207,0.30079258,664.91,662.28,0.30198707]
[1746833115506,0.24839476,664.9,662.28,0.30198707]
[1746833115707,0.30080616,664.88,662.28,0.30198707]
[1746833116202,0.24839476,664.87,662.28,0.30198707]
[1746833116407,0.30081973,664.85,662.28,0.30198707]
[1746833116603,0.24839476,664.84,662.28,0.30198707]
[1746833116808,0.3008333,664.82,662.28,0.30198707]
[1746833117407,0.24839476,664.81,662.28,0.30198707]
[1746833117608,0.30084235,664.8,662.28,0.30198707]
[1746833117803,0.54923711,664.8,662.28,0.30198707]
[1746833118209,0.30084235,664.8,662.28,0.30198707]
[1746833118513,0.24835454,664.79,662.28,0.30198707]
[1746833118712,0.3008514,664.78,662.28,0.30198707]
[1746833118905,0.54920594,664.78,662.28,0.30198707]
[1746833119310,0.24835454,664.77,662.28,0.30198707]
[1746833119511,0.30086046,664.76,662.28,0.30198707]
[1746833120011,0.549215,664.76,662.28,0.30198707]
[1746833120410,0.24835454,664.75,662.28,0.30198707]
[1746833120614,0.30086951,664.74,662.28,0.30198707]
[1746833120807,0.54922405,664.74,662.28,0.30198707]
[1746833121212,0.24835454,664.73,662.28,0.30198707]
[1746833121512,0.30088309,664.71,662.28,0.30198707]
[1746833122609,0.24850695,664.7,662.28,0.30198707]
[1746833122809,0.30089667,664.68,662.28,0.30198707]
[1746833123314,0.24850695,664.67,662.28,0.30198707]
[1746833123615,0.24850695,664.66,662.28,0.30198707]
[1746833124115,0.24850695,664.65,662.28,0.30198707]
[1746833124518,0.30096006,664.54,662.28,0.30198707]
[1746833125114,0.24850695,664.53,662.28,0.30198707]
[1746833125615,0.30096006,664.54,662.28,0.30198707]
[1746833125616,0.24850695,664.52,662.28,0.30198707]
[1746833125813,0.51088212,664.52,662.28,0.30198707]
[1746833126011,0.54948059,664.51,662.28,0.30198707]
[1746833126214,0.54948512,664.5,662.28,0.30198707]
[1746833126711,0.54948965,664.49,662.28,0.30198707]
[1746833126911,0.30098723,664.48,662.28,0.30198707]
[1746833127616,0.24850695,664.47,662.28,0.30198707]
[1746833128118,0.24850695,664.46,662.28,0.30198707]
[1746833128417,0.24850695,664.45,662.28,0.30198707]
[1746833128618,0.24850695,664.44,662.28,0.30198707]
[1746833129015,0.26232573,664.45,662.28,0.30198707]
[1746833129016,0.24850695,664.43,662.28,0.30198707]
[1746833129218,0.24850695,664.42,662.28,0.30198707]
[1746833129420,0.24850695,664.44,662.29,0.27706158]
[1746833129820,0.24850695,664.44,662.39,0.30193692]
[1746833130321,0.24850695,664.44,662.4,0.27697665]
[1746833130515,0.24850695,664.44,662.5,0.30188679]
[1746833131416,1.74054826,664.51,662.51,0.27697665]
[1746833131615,1.74054826,664.51,662.53,0.30187312]
[1746833131818,1.74054826,665.26,662.53,0.30187312]
[1746833132116,0.2479968,664.88,662.54,0.27697665]
[1746833132323,0.2479968,664.88,662.65,0.30181845]
[1746833132621,0.2479968,664.88,662.66,0.27697665]
[1746833132822,0.26208372,664.87,662.77,0.3017638]
[1746833133224,0.2479968,664.86,662.78,0.27697665]
[1746833133522,0.2479968,664.86,662.88,0.30171373]
[1746833133721,0.522,664.85,662.88,0.30171373]
[1746833134618,0.2479968,664.84,662.89,0.27697665]
[1746833134818,0.51003611,664.84,662.91,0.30170007]
[1746833135019,0.522,664.85,662.91,0.30170007]
[1746833135321,0.522,664.85,662.92,0.27697665]
[1746833135521,0.522,664.85,662.94,0.30168642]
[1746833135721,0.522,664.85,662.95,0.27697665]
[1746833135922,0.522,664.85,662.97,0.30167277]
[1746833136222,0.522,664.85,662.98,0.27697665]
[1746833136422,0.522,664.85,663.0,0.30165912]
[1746833137024,0.522,664.85,663.01,0.27697665]
[1746833137219,0.522,664.85,663.03,0.30164547]
[1746833137624,0.24786415,664.84,663.03,0.30164547]
[1746833138723,0.26204721,664.83,663.03,0.30164547]
[1746833139219,0.24786415,664.82,663.03,0.30164547]
[1746833140625,0.26202156,664.81,663.03,0.30164547]
[1746833140920,0.24786415,664.82,663.03,0.30164547]
[1746833141518,0.24786415,664.84,663.04,0.27676097]
[1746833142125,0.24786415,664.84,663.06,0.30163182]
[1746833142626,0.24786415,664.84,663.07,0.27676097]
[1746833142826,0.24786415,664.84,663.09,0.30161818]
[1746833143027,0.24786415,664.84,663.1,0.27676097]
[1746833143226,0.24786415,664.84,663.12,0.30160453]
[1746833143424,0.522,664.85,663.12,0.30160453]
[1746833143727,0.522,664.85,663.13,0.27676097]
[1746833143926,0.522,664.85,663.15,0.30159089]
[1746833144426,0.522,664.85,663.16,0.27676097]
[1746833144626,0.522,664.85,663.18,0.30157724]
[1746833144927,0.522,664.85,663.19,0.27676097]
[1746833145128,0.522,664.85,663.21,0.3015636]
[1746833145627,0.522,664.85,663.22,0.27676097]
[1746833145927,0.522,664.85,663.24,0.30154996]
[1746833146227,0.522,664.85,663.25,0.27676097]
[1746833146428,0.522,664.85,663.27,0.30153632]
[1746833147029,0.522,664.85,663.28,0.27676097]
[1746833147330,0.522,664.85,663.3,0.30152268]
[1746833147726,0.522,664.85,663.31,0.27676097]
[1746833147925,0.522,664.85,663.33,0.30150905]
[1746833148431,0.522,664.85,663.34,0.27676097]
[1746833148631,0.522,664.85,663.36,0.30149541]
[1746833148827,0.506,664.84,663.36,0.30149541]
[1746833149132,0.506,664.84,663.37,0.27676097]
[1746833149327,0.506,664.84,663.39,0.30148178]
[1746833150427,0.506,664.84,663.4,0.27676097]
[1746833150633,0.506,664.84,663.42,0.30146814]
[1746833151136,0.506,664.84,663.43,0.27676097]
[1746833151329,0.506,664.84,663.45,0.30145451]
[1746833151934,0.506,664.84,663.46,0.27676097]
[1746833152134,0.506,664.84,663.48,0.30144088]
[1746833153329,0.506,664.84,663.49,0.27657556]
[1746833153532,0.506,664.84,663.51,0.30142725]
[1746833155036,0.506,664.84,663.52,0.27657556]
[1746833159232,0.506,664.84,663.54,0.30141362]
[1746833159635,0.506,664.84,663.55,0.27657556]
[1746833159938,0.506,664.84,663.57,0.3014]
[1746833160237,0.506,664.84,663.58,0.27657556]
[1746833160438,0.506,664.84,663.6,0.30138637]
[1746833160638,0.358,664.83,663.6,0.30138637]
[1746833161135,0.358,664.83,663.61,0.27657556]
[1746833161439,0.358,664.83,663.63,0.30137275]
[1746833161639,0.358,664.83,663.64,0.27657556]
[1746833161836,0.358,664.83,663.66,0.30135912]
[1746833162442,0.358,664.83,663.67,0.27657556]
[1746833162646,0.358,664.83,663.69,0.3013455]
[1746833163147,0.358,664.83,663.7,0.27657556]
[1746833163448,0.358,664.83,663.69,0.3013455]
[1746833163647,0.358,664.83,663.72,0.30133188]
[1746833166049,0.24791891,664.82,663.72,0.30133188]
[1746833167450,0.358,664.83,663.72,0.30133188]
[1746833168051,0.24792919,664.82,663.72,0.30133188]
[1746833170952,0.26220417,664.81,663.72,0.30133188]
[1746833172248,0.24792919,664.8,663.72,0.30133188]
[1746833176758,0.26198605,664.79,663.72,0.30133188]
[1746833177559,0.24792919,664.78,663.72,0.30133188]
[1746833182262,0.498,664.77,663.72,0.30133188]
[1746833183058,0.24792919,664.76,663.72,0.30133188]
[1746833185164,0.498,664.77,663.72,0.30133188]
[1746833185663,0.24804864,664.76,663.72,0.30133188]
[1746833185864,0.51025874,664.76,663.72,0.30133188]
[1746833186160,0.24804864,664.75,663.72,0.30133188]
[1746833188668,0.498,664.77,663.72,0.30133188]
[1746833188962,0.262218,664.74,663.72,0.30133188]
[1746833189468,0.24806582,664.73,663.72,0.30133188]
[1746833191871,0.26227037,664.72,663.72,0.30133188]
[1746833192066,0.24806582,664.71,663.72,0.30133188]
[1746833194573,0.563,664.7,663.72,0.30133188]
[1746833194774,0.8249969,664.7,663.72,0.30133188]
[1746833195272,0.24810547,664.69,663.72,0.30133188]
[1746833197869,0.26238012,664.68,663.72,0.30133188]
[1746833198068,0.51048559,664.68,663.72,0.30133188]
[1746833198373,0.24810547,664.67,663.72,0.30133188]
[1746833198674,0.24810547,664.66,661.05,0.91134469]
[1746833198874,0.24810547,664.66,661.23,0.30246661]
[1746833199071,0.26238012,664.68,661.23,0.30246661]
[1746833199072,0.24810547,664.65,661.23,0.30246661]
[1746833199472,0.24810547,664.64,661.24,0.2771569]
[1746833199772,0.24810547,664.63,661.41,0.3023843]
[1746833200070,0.26238012,664.68,661.41,0.3023843]
[1746833200573,0.30090119,664.67,661.41,0.3023843]
[1746833201170,0.24842871,664.66,661.42,0.27720835]
[1746833201374,0.24842871,664.66,661.58,0.30230659]
[1746833202674,0.24842871,664.65,661.58,0.30230659]
[1746833202869,0.24842871,664.64,661.59,0.27720835]
[1746833203073,0.24842871,664.64,661.74,0.3022335]
[1746833203478,0.24842871,664.63,661.74,0.3022335]
[1746833203673,0.24842871,664.62,661.75,0.27720835]
[1746833203871,0.51078015,664.62,661.89,0.30216501]
[1746833204075,0.24842871,664.61,661.89,0.30216501]
[1746833204280,0.24842871,664.6,661.9,0.27720835]
[1746833204575,0.24842871,664.59,662.03,0.30210111]
[1746833205177,0.24842871,664.58,662.04,0.27720835]
[1746833205378,0.24842871,664.58,662.16,0.3020418]
[1746833205579,0.24842871,664.57,662.16,0.3020418]
[1746833205779,0.24842871,664.56,662.16,0.3020418]
[1746833206276,0.24842871,664.55,662.16,0.3020418]
[1746833206678,0.51082663,664.54,662.16,0.3020418]
[1746833206876,0.24842871,664.53,662.16,0.3020418]
[1746833207476,0.24842871,664.52,662.17,0.27703116]
[1746833207781,0.24842871,664.52,662.28,0.30198707]
[1746833207980,0.24842871,664.51,662.28,0.30198707]
[1746833208375,0.24842871,664.5,662.29,0.27703116]
[1746833208581,0.24842871,664.5,662.4,0.30193236]
[1746833208783,0.24842871,664.49,662.41,0.27703116]
[1746833208984,0.24842871,664.49,662.51,0.30188223]
[1746833209184,0.24842871,664.53,662.51,0.30188223]
[1746833209375,0.24842871,664.52,662.52,0.27703116]
[1746833209579,0.24842871,664.52,662.54,0.30186856]
[1746833209778,0.51062202,664.51,662.55,0.27703116]
[1746833209982,0.24842871,664.5,662.57,0.30185489]
[1746833210477,0.24842871,664.49,662.58,0.27703116]
[1746833210781,0.24842871,664.5,662.6,0.30184123]
[1746833212882,0.26244641,664.49,662.6,0.30184123]
[1746833213383,0.24842871,664.48,662.6,0.30184123]
[1746833214784,0.26244641,664.49,662.6,0.30184123]
[1746833215178,0.24839193,664.48,662.6,0.30184123]
[1746833218886,0.26229706,664.47,662.6,0.30184123]
[1746833219285,0.24839193,664.46,662.6,0.30184123]
[1746833219982,0.24839193,664.45,662.6,0.30184123]
[1746833220385,0.24839193,664.46,662.6,0.30184123]
[1746833221984,0.2622595,664.45,662.6,0.30184123]
[1746833222283,0.51065143,664.45,662.6,0.30184123]
[1746833222689,0.24839193,664.44,662.6,0.30184123]
[1746833222988,0.24839193,664.43,662.6,0.30184123]
[1746833223489,0.24839193,664.42,662.6,0.30184123]
[1746833223785,0.24839193,664.44,662.6,0.30184123]
[1746833224684,0.26225456,664.43,662.6,0.30184123]